bitfinex-derivatives/quotes_SOLF0:USTF0_20260129
["timestamp","ask_amount","ask_price","bid_price","bid_amount"]
[1769680111666,17.02275231,123.2,123.16,7.3187]
[1769680122881,14.48804734,123.2,123.16,7.3187]
[1769680123778,17.02275231,123.2,123.16,7.3187]
[1769680128983,14.48804734,123.2,123.16,7.3187]
[1769680138898,14.38479182,123.22,123.16,16.8248403]
[1769680139089,14.38479182,123.22,123.17,2.53470497]
[1769680139292,14.38479182,123.22,123.17,14.29013533]
[1769680140290,14.38479182,123.22,123.18,7.3174]
[1769680142098,14.38479182,123.22,123.19,7.317]
[1769680142297,24.23369679,123.24,123.19,7.317]
[1769680142799,14.38479182,123.23,123.19,7.317]
[1769680145601,14.38479182,123.23,123.18,7.3175]
[1769680145901,16.91949679,123.2,123.15,14.29013533]
[1769680146602,16.91949679,123.2,123.17,7.3179]
[1769680147198,14.38479182,123.2,123.17,7.3179]
[1769680148499,16.91949679,123.2,123.15,21.60903533]
[1769680148798,121.36897182,123.26,123.15,7.3189]
[1769680148799,16.91949679,123.19,123.15,7.3189]
[1769680149008,121.37507182,123.25,123.12,116.41810497]
[1769680149009,2.53470497,123.16,123.12,7.3207]
[1769680149306,2.53470497,123.15,123.12,7.3207]
[1769680150408,16.91949679,123.16,123.12,7.3207]
[1769680153306,14.38479182,123.16,123.12,7.3207]
[1769680155003,14.38479182,123.16,123.11,9.85650497]
[1769680163011,14.38479182,123.16,123.11,7.3218]
[1769680163208,14.38479182,123.16,123.11,9.85650497]
[1769680165220,14.38479182,123.16,123.11,7.3218]
[1769680165515,14.38479182,123.16,123.11,9.85650497]
[1769680167315,14.38479182,123.16,123.11,23.39327644]
[1769680169118,14.38479182,123.16,123.12,2.53470497]
[1769680173619,14.38479182,123.16,123.12,2.53603038]
[1769680179337,14.38479182,123.16,123.12,9.85723038]
[1769680189741,14.38479182,123.16,123.12,7.3212]
[1769680192931,14.38479182,123.16,123.12,9.85723038]
[1769680205161,14.38479182,123.16,123.12,7.3212]
[1769680208056,16.9208222,123.16,123.09,15.01656232]
[1769680208264,14.38479182,123.16,123.1,2.53603038]
[1769680208557,14.58682202,123.15,123.11,2.53603038]
[1769680211055,14.58682202,123.15,123.1,9.85843038]
[1769680211860,21.90632202,123.15,123.1,2.53603038]
[1769680212164,14.58682202,123.14,123.1,2.53603038]
[1769680214359,14.58682202,123.14,123.09,7.3229]
[1769680217160,14.58682202,123.14,123.09,9.85893038]
[1769680217559,14.58682202,123.14,123.09,7.3229]
[1769680217758,14.58682202,123.14,123.09,9.85893038]
[1769680222464,14.58682202,123.14,123.09,7.3229]
[1769680222769,14.58682202,123.14,123.09,9.85893038]
[1769680230171,14.58682202,123.14,123.09,7.3229]
[1769680230369,14.58682202,123.14,123.09,9.85893038]
[1769680230570,17.1228524,123.14,123.09,7.3229]
[1769680232170,14.58682202,123.14,123.09,7.3229]
[1769680233972,15.03429902,123.13,123.09,7.3229]
[1769680237067,15.03429902,123.17,123.11,2.53744643]
[1769680237669,7.3189,123.16,123.11,2.53744643]
[1769680237877,2.53744643,123.18,123.12,2.53744643]
[1769680237878,15.03429902,123.15,123.12,2.53744643]
[1769680238068,15.03429902,123.15,123.11,2.53744643]
[1769680238672,15.03429902,123.15,123.1,14.98445543]
[1769680238871,15.03429902,123.15,123.1,17.52190186]
[1769680240273,15.03429902,123.15,123.1,24.84430186]
[1769680241278,15.03429902,123.15,123.1,9.85984643]
[1769680243576,15.03429902,123.15,123.1,24.84430186]
[1769680243978,15.03429902,123.15,123.11,2.53744643]
[1769680248877,15.03429902,123.15,123.1,24.84430186]
[1769680249683,15.03429902,123.15,123.11,2.53744643]
[1769680251976,15.03429902,123.15,123.1,22.30685543]
[1769680252177,15.03429902,123.15,123.11,2.53744643]
[1769680260192,15.03429902,123.15,123.1,24.84430186]
[1769680263594,15.03429902,123.15,123.11,2.53744643]
[1769680264794,22.36786735,123.17,123.11,24.44898639]
[1769680264997,15.04956735,123.17,123.14,2.53744643]
[1769680265296,15.04956735,123.19,123.15,2.53744643]
[1769680265491,15.04956735,123.19,123.16,2.53744643]
[1769680266294,15.04956735,123.19,123.16,9.85624643]
[1769680267902,15.04956735,123.19,123.16,2.53744643]
[1769680268898,15.04956735,123.19,123.15,7.3194]
[1769680268899,15.04956735,123.19,123.15,9.85684643]
[1769680274804,15.04956735,123.19,123.16,2.53744643]
[1769680275601,15.04956735,123.19,123.15,9.85684643]
[1769680281414,15.04956735,123.19,123.15,7.3194]
[1769680288723,15.04956735,123.19,123.15,9.85684643]
[1769680290125,17.05919099,123.21,123.16,7.3186]
[1769680290312,14.52174456,123.21,123.16,7.3186]
[1769680290823,17.05919099,123.21,123.16,7.3186]
[1769680292022,14.52174456,123.21,123.16,7.3186]
[1769680292226,17.05919099,123.21,123.16,7.3186]
[1769680293817,14.52174456,123.21,123.16,7.3186]
[1769680295626,17.05611842,123.21,123.16,7.3186]
[1769680300825,14.52174456,123.21,123.16,7.3186]
[1769680306035,17.05611842,123.21,123.16,7.3186]
[1769680309627,15.08536621,123.23,123.17,17.50922493]
[1769680309829,15.08536621,123.23,123.18,2.53437386]
[1769680310633,15.08536621,123.23,123.17,17.50922493]
[1769680311337,15.08536621,123.23,123.18,7.3176]
[1769680312138,17.61974007,123.23,123.18,7.3176]
[1769680315926,17.76863434,123.22,123.17,14.97485107]
[1769680316139,17.76863434,123.21,123.15,16.71679676]
[1769680317342,17.76863434,123.21,123.17,7.3182]
[1769680320741,2.53437386,123.2,123.16,7.3187]
[1769680321144,17.76863434,123.2,123.16,7.3187]
[1769680325845,17.76863434,123.2,123.15,21.5018229]
[1769680327747,15.23426048,123.2,123.15,21.5018229]
[1769680328947,17.76863434,123.2,123.15,21.5018229]
[1769680334151,15.23426048,123.2,123.16,7.3187]
[1769680334547,17.76863434,123.2,123.16,7.3187]
[1769680336553,15.23426048,123.2,123.16,7.3187]
[1769680357364,15.23426048,123.2,123.15,14.1824229]
[1769680357568,14.82323039,123.19,123.15,7.3189]
[1769680358469,17.3577158,123.19,123.15,7.3189]
[1769680359372,17.3577158,123.17,123.11,348.49150205]
[1769680359563,17.3577158,123.17,123.12,14.11619552]
[1769680360372,17.3577158,123.17,123.13,7.3201]
[1769680360865,14.82323039,123.17,123.14,7.3199]
[1769680370287,14.82323039,123.19,123.15,23.97008093]
[1769680370479,14.82323039,123.19,123.16,2.53448541]
[1769680370680,14.82323039,123.19,123.15,23.97008093]
[1769680378686,14.54645917,123.21,123.16,7.3188]
[1769680378890,17.08094458,123.21,123.16,7.3188]
[1769680379181,14.54645917,123.21,123.16,7.3188]
[1769680379386,14.54645917,123.21,123.17,7.3182]
[1769680381383,14.54645917,123.23,123.18,7.3175]
[1769680382588,17.08094458,123.23,123.18,7.3175]
[1769680396708,14.54645917,123.25,123.2,13.98811755]
[1769680397199,17.08094458,123.25,123.2,13.98811755]
[1769680398206,17.08094458,123.24,123.2,7.3164]
[1769680399204,17.08094458,123.24,123.18,21.30541755]
[1769680399495,2.53448541,123.21,123.18,7.3173]
[1769680400098,2.53448541,123.2,123.17,7.3183]
[1769680400698,17.08094458,123.2,123.16,7.3188]
[1769680401703,17.08094458,123.2,123.15,13.98811755]
[1769680401704,2.53448541,123.19,123.15,21.30751755]
[1769680404205,14.54645917,123.2,123.15,21.30751755]
[1769680404501,2.53448541,123.19,123.16,7.3188]
[1769680404897,17.08094458,123.19,123.16,7.3188]
[1769680406605,16.62149894,123.18,123.14,7.3197]
[1769680412509,14.08701353,123.18,123.14,7.3197]
[1769680414004,14.30943199,123.2,123.14,21.75448608]
[1769680414308,14.30943199,123.2,123.14,24.28897149]
[1769680414515,14.30943199,123.2,123.14,21.75448608]
[1769680414696,16.8439174,123.2,123.14,21.75448608]
[1769680414900,121.35764637,123.24,123.12,16.96927149]
[1769680414901,14.30943199,123.18,123.12,16.96927149]
[1769680416310,14.30943199,123.18,123.13,7.3206]
[1769680417109,14.30943199,123.18,123.13,21.75538608]
[1769680425817,16.84486471,123.16,123.11,14.43478608]
[1769680426109,14.30943199,123.16,123.12,21.75598608]
[1769680438725,2.53543272,123.14,123.1,21.37445526]
[1769680438934,2.53543272,123.12,123.08,14.05265526]
[1769680439129,16.92282158,123.13,123.08,14.05265526]
[1769680441128,16.92282158,123.13,123.09,7.323]
[1769680443537,14.38738886,123.13,123.09,7.323]
[1769680445034,14.38738886,123.11,123.05,340.90808798]
[1769680445835,14.38738886,123.11,123.05,338.37265526]
[1769680446135,14.38738886,123.11,123.05,340.90808798]
[1769680446344,14.38738886,123.11,123.07,7.3241]
[1769680448134,16.92282158,123.11,123.05,338.37265526]
[1769680448335,16.92282158,123.11,123.06,14.05265526]
[1769680449339,16.92282158,123.11,123.06,21.37745526]
[1769680454047,16.92282158,123.11,123.07,7.3242]
[1769680456048,14.38738886,123.11,123.07,7.3242]
[1769680462952,16.92282158,123.11,123.07,7.3242]
[1769680463850,14.38738886,123.11,123.07,7.3242]
[1769680466761,16.92282158,123.11,123.07,7.3242]
[1769680467453,14.38738886,123.11,123.07,22.42275194]
[1769680467760,14.38738886,123.11,123.07,15.09855194]
[1769680469361,14.38738886,123.11,123.07,22.42275194]
[1769680473960,14.99799512,123.13,123.07,24.95818466]
[1769680474164,17.53342784,123.13,123.07,22.42275194]
[1769680474366,2.53543272,123.12,123.07,22.42275194]
[1769680474665,17.53342784,123.12,123.07,22.42275194]
[1769680477255,14.99799512,123.12,123.07,22.42275194]
[1769680479363,17.53342784,123.12,123.07,7.3242]
[1769680479564,17.53637541,123.12,123.07,7.3242]
[1769680481260,24.85767541,123.12,123.06,22.45047229]
[1769680481464,17.53637541,123.1,123.06,7.3248]
[1769680482668,14.99799512,123.1,123.06,7.3248]
[1769680493376,14.99799512,123.1,123.05,22.45107229]
[1769680505983,14.99799512,123.1,123.06,7.3246]
[1769680506171,14.99799512,123.1,123.06,22.30555526]
[1769680515087,14.99799512,123.1,123.02,316.5234248]
[1769680515391,14.16063221,123.09,123.04,7.3256]
[1769680515579,16.6990125,123.09,123.04,7.3256]
[1769680517891,14.16063221,123.09,123.05,7.3251]
[1769680518086,14.16063221,123.09,123.05,9.86348029]
[1769680518482,14.16063221,123.09,123.05,24.84443555]
[1769680518888,14.16063221,123.1,123.05,24.84443555]
[1769680519398,14.16063221,123.1,123.06,7.3246]
[1769680519601,14.16063221,123.1,123.06,9.86298029]
[1769680520497,14.16063221,123.1,123.06,7.3246]
[1769680523202,16.6990125,123.1,123.05,22.30625526]
[1769680525401,14.16063221,123.1,123.05,22.30625526]
[1769680534517,14.16063221,123.1,123.05,24.84463555]
[1769680537320,14.38061723,123.11,123.06,22.0408616]
[1769680538518,16.91899752,123.11,123.06,22.0408616]
[1769680539719,14.38061723,123.11,123.06,22.0408616]
[1769680541418,16.91899752,123.11,123.06,22.0408616]
[1769680541620,16.91934348,123.11,123.06,22.0408616]
[1769680544624,16.91934348,123.11,123.07,7.3242]
[1769680554229,14.38061723,123.11,123.07,7.3242]
[1769680560631,14.38061723,123.11,123.08,7.3236]
[1769680560836,17.28747131,123.13,123.08,7.3236]
[1769680561334,32.18611768,123.15,123.09,15.54020834]
[1769680561536,24.60697131,123.15,123.09,18.07893459]
[1769680561735,24.60697131,123.15,123.09,15.54020834]
[1769680562036,14.74874506,123.14,123.09,15.54020834]
[1769680562434,14.74874506,123.14,123.1,7.3223]
[1769680563437,14.74874506,123.14,123.09,25.40193459]
[1769680563739,14.74874506,123.14,123.09,22.86320834]
[1769680569846,17.28747131,123.14,123.09,22.86320834]
[1769680571846,14.74874506,123.14,123.09,22.86320834]
[1769680572940,17.28747131,123.14,123.09,22.86320834]
[1769680584046,2.53872625,123.13,123.09,22.86320834]
[1769680587749,2.53872625,123.13,123.09,22.86320834]
[1769680592749,17.78393343,123.13,123.09,15.54020834]
[1769680599060,15.24520718,123.13,123.09,15.54020834]
[1769680599454,22.56470718,123.15,123.09,22.86300834]
[1769680599656,25.10343343,123.15,123.09,22.86300834]
[1769680600664,2.53872625,123.14,123.09,22.86300834]
[1769680601570,2.53723917,123.14,123.09,22.86300834]
[1769680604169,2.53723917,123.14,123.1,15.56992157]
[1769680604361,25.10194635,123.15,123.1,15.56992157]
[1769680604859,17.78244635,123.14,123.1,15.56992157]
[1769680614179,2.53723917,123.13,123.1,15.56992157]
[1769680614779,2.53723917,123.13,123.09,7.3228]
[1769680615875,2.53723917,123.13,123.09,21.7179209]
[1769680624585,2.53723917,123.13,123.09,14.3951209]
[1769680629192,2.53723917,123.13,123.08,7.3235]
[1769680629193,2.53723917,123.11,123.07,14.3951209]
[1769680631193,14.84923829,123.12,123.07,14.3951209]
[1769680631386,2.53723917,123.11,123.07,14.3951209]
[1769680636602,2.53723917,123.09,123.05,14.3951209]
[1769680636989,2.53723917,123.08,123.05,14.3951209]
[1769680639403,17.38647746,123.09,123.05,14.3951209]
[1769680639990,2.53723917,123.07,123.03,21.7216209]
[1769680641192,2.53723917,123.07,123.04,14.3951209]
[1769680646108,22.17233829,123.09,123.04,14.3951209]
[1769680646109,2.53723917,123.08,123.04,14.3951209]
[1769680647411,14.84923829,123.09,123.04,21.7208209]
[1769680647600,2.53723917,123.08,123.04,21.7208209]
[1769680648011,2.53723917,123.08,123.05,14.6786186]
[1769680648802,2.53723917,123.1,123.06,14.6786186]
[1769680652308,15.74636455,123.11,123.07,15.21395719]
[1769680652509,18.28360372,123.11,123.07,15.21395719]
[1769680655110,15.74636455,123.11,123.07,15.21395719]
[1769680655312,18.28360372,123.11,123.07,15.21395719]
[1769680656104,2.53723917,123.12,123.08,15.21395719]
[1769680656509,18.31823392,123.13,123.08,15.21395719]
[1769680658900,18.31823392,123.13,123.08,22.53745719]
[1769680661616,18.31880943,123.13,123.08,22.53745719]
[1769680664214,18.31880943,123.13,123.08,15.21395719]
[1769680666016,2.53781468,123.12,123.08,15.21395719]
[1769680667006,18.31880943,123.11,123.06,22.53865719]
[1769680667206,2.53781468,123.1,123.06,22.53865719]
[1769680667415,18.31880943,123.1,123.04,15.21395719]
[1769680667616,2.53781468,123.09,123.04,15.21395719]
[1769680668318,2.53781468,123.09,123.05,22.53925719]
[1769680669716,2.53781468,123.08,123.05,15.21395719]
[1769680671424,2.53781468,123.06,123.02,7.3271]
[1769680672116,2.53781468,123.06,123.02,22.54105719]
[1769680673317,2.53781468,123.06,123.02,15.21395719]
[1769680673518,2.53781468,123.05,123.02,15.21395719]
[1769680674222,2.53781468,123.05,123.01,7.3277]
[1769680675226,2.53781468,123.05,123.01,22.54165719]
[1769680675817,2.53781468,123.05,123.01,15.21395719]
[1769680676626,2.53781468,123.03,123.0,15.03746505]
[1769680678433,2.53781468,123.04,123.01,15.03746505]
[1769680679934,2.53781468,123.05,123.02,15.03746505]
[1769680688242,2.53781468,123.05,123.01,7.3276]
[1769680688243,2.53781468,123.04,123.01,15.03746505]
[1769680690348,17.30096752,123.05,123.01,15.03746505]
[1769680691850,2.53781468,123.04,123.01,15.03746505]
[1769680694048,17.30096752,123.05,123.01,15.03746505]
[1769680696250,2.53781468,123.05,123.01,15.03746505]
[1769680697142,14.76315284,123.07,123.01,22.36506505]
[1769680697352,17.30096752,123.07,123.02,15.03746505]
[1769680697544,14.76315284,123.07,123.02,15.03746505]
[1769680697853,17.30096752,123.07,123.02,15.03746505]
[1769680698647,24.62516752,123.07,123.02,15.03746505]
[1769680701457,2.53781468,123.06,123.02,15.03746505]
[1769680704952,9.86201468,123.07,123.02,15.03746505]
[1769680705953,7.3237,123.08,123.03,14.78377782]
[1769680706155,17.30096752,123.09,123.03,14.78377782]
[1769680706642,24.62406752,123.09,123.03,22.10987782]
[1769680706846,24.62406752,123.09,123.04,14.78377782]
[1769680713657,14.94266305,123.11,123.05,15.66240688]
[1769680713866,2.53781468,123.09,123.05,15.66240688]
[1769680714065,112.77914637,123.13,123.05,15.66240688]
[1769680714066,2.53781468,123.08,123.05,15.66240688]
[1769680714252,14.94266305,123.1,123.05,15.66240688]
[1769680714457,2.53781468,123.08,123.05,15.66240688]
[1769680714867,2.53781468,123.08,123.03,15.66240688]
[1769680715368,2.53781468,123.08,123.03,22.98890688]
[1769680717764,22.26576305,123.09,123.04,15.66240688]
[1769680718068,14.94266305,123.09,123.05,15.66240688]
[1769680718757,17.48047773,123.09,123.05,15.66240688]
[1769680721069,22.26446305,123.11,123.05,22.98750688]
[1769680721369,2.53781468,123.1,123.06,15.66240688]
[1769680723664,2.53887124,123.1,123.06,15.66240688]
[1769680725373,24.80333429,123.11,123.06,15.66240688]
[1769680725565,22.26446305,123.11,123.06,15.66240688]
[1769680727768,17.48153429,123.11,123.07,15.66240688]
[1769680727974,2.53887124,123.11,123.07,15.66240688]
[1769680743208,22.26386305,123.12,123.07,15.66240688]
[1769680743501,2.53887124,123.11,123.07,15.66240688]
[1769680750801,9.86067124,123.11,123.07,15.66240688]
[1769680752403,2.53887124,123.1,123.07,15.66240688]
[1769680754500,7.3218,123.11,123.04,2.53887124]
[1769680754501,2.53887124,123.09,123.04,7.3255]
[1769680754705,2.53887124,123.08,123.04,7.3255]
[1769680756610,2.53887124,123.08,123.05,15.69338588]
[1769680758810,2.53887124,123.09,123.05,15.69338588]
[1769680759012,2.53887124,123.09,123.05,23.01878588]
[1769680761315,9.86137124,123.1,123.06,15.69338588]
[1769680761809,2.53887124,123.1,123.06,15.69338588]
[1769680763009,2.53887124,123.1,123.07,15.69338588]
[1769680767410,2.53887124,123.09,123.06,14.82108581]
[1769680771611,22.14792389,123.11,123.06,14.82108581]
[1769680771811,2.53887124,123.09,123.06,14.82108581]
[1769680776416,9.86127124,123.1,123.06,14.82108581]
[1769680778521,2.53887124,123.08,123.03,7.3265]
[1769680780822,2.53887124,123.08,123.04,2.3736406]
[1769680783727,2.53968832,123.08,123.04,2.3736406]
[1769680789729,2.53968832,123.08,123.04,9.6995406]
[1769680790624,17.95310487,123.06,123.01,10.1234248]
[1769680790929,2.53968832,123.03,123.0,7.3283]
[1769680791130,2.53968832,123.04,123.0,7.3283]
[1769680792630,15.41341655,123.06,123.0,7.3283]
[1769680792822,2.53968832,123.04,123.0,7.3283]
[1769680793019,2.53968832,123.04,123.0,7.44724731]
[1769680793235,2.53968832,123.04,123.0,0.11894731]
[1769680793433,2.53968832,123.03,123.0,0.11894731]
[1769680798231,2.53968832,123.04,123.0,0.11894731]
[1769680802940,16.69482703,123.04,123.0,0.11894731]
[1769680803142,19.23451535,123.04,123.0,0.11894731]
[1769680805747,19.23451535,123.04,122.99,7.3289]
[1769680807146,19.23451535,123.02,122.97,7.3298]
[1769680807541,19.23451535,123.02,122.97,0.99396612]
[1769680808239,2.53968832,122.99,122.95,0.99396612]
[1769680808440,16.69482703,123.0,122.95,0.99396612]
[1769680809448,16.69482703,123.0,122.96,8.42108453]
[1769680812148,16.69482703,123.0,122.97,7.3301]
[1769680813946,16.69482703,123.02,122.98,7.3295]
[1769680816753,19.23451535,123.02,122.98,7.3295]
[1769680816940,16.69482703,123.02,122.99,7.3289]
[1769680820353,19.23451535,123.02,122.98,7.3295]
[1769680823955,16.69482703,123.02,122.98,7.3295]
[1769680824154,19.23451535,123.02,122.98,7.3295]
[1769680824454,16.69482703,123.02,122.98,7.3295]
[1769680825854,19.23451535,123.02,122.98,7.3295]
[1769680828855,16.69482703,123.02,122.98,7.3295]
[1769680836858,19.23451535,123.02,122.97,7.3301]
[1769680837054,17.47209876,123.0,122.95,4.81408057]
[1769680837246,17.47209876,123.0,122.95,2.27439225]
[1769680838463,17.47209876,123.0,122.96,7.3307]
[1769680838652,17.47209876,123.0,122.91,15.18513721]
[1769680838653,17.47209876,122.98,122.93,2.34189028]
[1769680838851,17.47209876,122.96,122.89,2.34189028]
[1769680839056,17.47209876,122.94,122.89,2.34189028]
[1769680839467,17.47209876,122.94,122.91,7.3336]
[1769680839759,17.47209876,122.94,122.89,12.24846727]
[1769680840151,17.47209876,122.94,122.9,7.3341]
[1769680841260,20.01178708,122.94,122.88,7.335]
[1769680842362,17.47209876,122.92,122.88,7.335]
[1769680845473,17.47209876,122.92,122.88,9.87468832]
[1769680845669,17.47209876,122.92,122.88,7.335]
[1769680847376,17.47209876,122.92,122.88,9.88072245]
[1769680854286,17.47209876,122.92,122.89,2.54572245]
[1769680854481,17.47209876,122.94,122.9,2.54572245]
[1769680854692,17.47209876,122.94,122.91,2.54572245]
[1769680854982,17.47209876,122.96,122.91,2.54572245]
[1769680856288,17.47209876,122.96,122.91,9.87942245]
[1769680859484,17.47209876,122.96,122.92,2.54572245]
[1769680861293,17.47209876,122.96,122.91,7.3337]
[1769680861593,17.47209876,122.96,122.92,2.54572245]
[1769680862594,17.47209876,122.96,122.91,9.87942245]
[1769680863994,17.47209876,122.96,122.91,7.3337]
[1769680864298,17.47209876,122.96,122.91,9.87942245]
[1769680864896,17.47209876,122.96,122.92,2.54572245]
[1769680868195,17.47209876,122.96,122.91,9.87942245]
[1769680874097,17.47209876,122.96,122.91,7.3337]
[1769680881694,17.47209876,122.96,122.91,9.87942245]
[1769680882300,17.47209876,122.96,122.91,7.3337]
[1769680882600,17.47209876,122.96,122.91,9.87942245]
[1769680887000,17.14947483,122.98,122.94,2.54572245]
[1769680887205,17.14947483,122.98,122.95,2.54572245]
[1769680888304,17.14947483,122.98,122.95,9.87702245]
[1769680889005,17.14947483,122.98,122.96,2.54572245]
[1769680889201,17.14947483,123.0,122.96,2.54572245]
[1769680890405,17.14947483,123.0,122.95,9.87702245]
[1769680890603,17.14947483,123.0,122.95,21.58143667]
[1769680891198,17.14947483,123.0,122.96,2.54572245]
[1769680892404,17.14947483,123.0,122.96,9.87642245]
[1769680893408,17.14947483,123.0,122.97,2.54572245]
[1769680898025,17.07956386,123.02,122.99,2.54572245]
[1769680898221,17.07956386,123.02,123.0,2.54572245]
[1769680898522,17.07956386,123.02,122.99,9.87442245]
[1769680899021,17.07956386,123.02,122.99,7.3287]
[1769680899414,17.07956386,123.0,122.94,14.48890598]
[1769680899618,19.62528631,123.0,122.94,14.48890598]
[1769680900117,19.62528631,123.0,122.94,11.94318353]
[1769680900317,19.62528631,123.0,122.95,7.3308]
[1769680903224,2.54572245,122.98,122.95,7.3308]
[1769680903620,19.62528631,122.98,122.91,12.03763223]
[1769680903826,19.62528631,122.96,122.91,12.03763223]
[1769680904127,2.54572245,122.95,122.91,12.03763223]
[1769680905417,2.54572245,122.95,122.93,7.3325]
[1769680905628,2.54507557,122.95,122.93,7.3325]
[1769680907325,19.62463943,122.96,122.93,7.3325]
[1769680908026,17.07956386,122.98,122.93,19.46003478]
[1769680908327,17.07956386,122.98,122.94,7.3318]
[1769680908528,19.62463943,122.98,122.94,7.3318]
[1769680910035,17.07956386,122.98,122.95,7.3313]
[1769680910331,19.62463943,122.98,122.93,12.12753478]
[1769680911533,19.62463943,122.98,122.93,19.45953478]
[1769680912634,19.62463943,122.98,122.94,7.3318]
[1769680913332,17.07956386,122.98,122.94,7.3318]
[1769680918235,18.45190594,123.0,122.96,7.3307]
[1769680918835,18.45190594,123.0,122.95,22.22868114]
[1769680920737,18.45190594,123.0,122.95,9.87637557]
[1769680922539,18.45190594,123.0,122.95,7.3313]
[1769680927042,18.45190594,123.0,122.95,9.87637557]
[1769680927242,18.45190594,123.0,122.96,2.54507557]
[1769680928635,18.45190594,123.0,122.96,9.87577557]
[1769680929243,18.45190594,123.0,122.96,2.54507557]
[1769680930742,18.45190594,123.0,122.95,22.41089774]
[1769680931045,18.45190594,123.0,122.96,9.87577557]
[1769680932843,18.45190594,123.0,122.97,2.54507557]
[1769680933846,18.45190594,123.0,122.97,9.87517557]
[1769680934034,18.45190594,123.02,122.98,2.54507557]
[1769680935142,18.45190594,123.02,122.97,7.3301]
[1769680935343,18.45190594,123.02,122.99,2.54507557]
[1769680937849,18.45190594,123.02,122.98,7.3294]
[1769680938049,18.45190594,123.02,122.98,9.87447557]
[1769680940738,18.45190594,123.02,122.99,2.54507557]
[1769680944157,18.45190594,123.02,122.98,9.87447557]
[1769680944455,18.45190594,123.02,122.99,2.54507557]
[1769680946557,18.81457845,123.04,123.0,2.54507557]
[1769680947143,18.81457845,123.04,123.01,2.54507557]
[1769680954063,18.81457845,123.04,123.0,9.87327557]
[1769680954365,1.0,123.03,123.0,9.87327557]
[1769680957478,1.0,123.03,123.0,7.3282]
[1769680957675,20.44385928,123.03,123.0,7.3282]
[1769680959679,20.44385928,123.03,122.98,2.54507557]
[1769680960572,20.44385928,123.03,122.99,7.3284]
[1769680974979,22.9853289,123.03,122.99,7.3284]
[1769680978590,20.44385928,123.03,122.99,7.3284]
[1769680983996,20.44385928,123.03,122.99,9.86986962]
[1769680985199,19.39412103,123.05,123.01,2.54146962]
[1769680986293,19.39412103,123.05,123.0,23.1388746]
[1769680989999,19.39412103,123.05,123.01,2.54146962]
[1769680990601,19.39412103,123.05,123.0,23.1388746]
[1769680992504,19.39412103,123.05,123.0,20.59740498]
[1769680992804,19.39412103,123.05,123.0,7.3283]
[1769680995397,21.93559065,123.05,122.99,7.3289]
[1769680996306,29.26099065,123.05,122.99,7.3289]
[1769680996502,19.39412103,123.04,122.96,348.10297498]
[1769680996805,19.39412103,123.02,122.96,15.90649137]
[1769680998105,19.39412103,123.02,122.96,13.36502175]
[1769680998306,19.39412103,123.02,122.97,7.3301]
[1769680999308,19.39412103,123.02,122.97,9.87156962]
[1769680999797,19.39412103,123.02,122.98,7.3295]
[1769681016310,18.28322413,123.01,122.94,29.46879016]
[1769681016512,20.82469375,123.01,122.94,21.93230655]
[1769681017414,20.82469375,123.01,122.96,7.3304]
[1769681018017,20.82469375,123.0,122.96,7.3304]
[1769681029630,20.82643627,123.0,122.96,7.3304]
[1769681031833,2.54321214,122.99,122.95,7.3313]
[1769681032632,20.82643627,122.99,122.94,26.72273693]
[1769681039226,18.28322413,122.99,122.94,26.72273693]
[1769681040541,19.10099031,123.01,122.95,20.77502102]
[1769681041439,19.10099031,123.01,122.96,7.3307]
[1769681043035,19.10099031,123.01,122.96,9.87391214]
[1769681043845,19.10099031,123.01,122.97,9.87321214]
[1769681044142,19.10099031,123.01,122.98,2.54321214]
[1769681044443,19.10099031,123.03,122.98,2.54321214]
[1769681045343,19.10099031,123.03,122.97,28.10502102]
[1769681049250,19.10099031,123.03,122.98,7.3295]
[1769681049448,19.10099031,123.03,122.99,2.54321214]
[1769681049840,19.10099031,123.03,122.99,9.87211214]
[1769681050950,19.10099031,123.03,123.0,9.87151214]
[1769681052653,19.10099031,123.03,123.0,7.3283]
[1769681055352,21.64420245,123.03,122.98,7.329]
[1769681058857,19.10099031,123.03,122.98,25.56080888]
[1769681059261,19.10099031,123.03,122.98,28.10402102]
[1769681059756,19.10099031,123.03,122.99,7.3288]
[1769681060060,19.10099031,123.06,123.01,2.54321214]
[1769681060559,21.64420245,123.06,123.0,2.54321214]
[1769681061560,19.10099031,123.05,123.0,7.3279]
[1769681062158,21.64420245,123.05,123.0,7.3279]
[1769681064062,19.10099031,123.05,123.0,7.3279]
[1769681067566,19.10099031,123.05,123.0,9.87111214]
[1769681078469,113.9202,123.09,122.97,114.0231]
[1769681078470,26.28294869,123.07,123.01,21.35228013]
[1769681078766,18.95864869,123.07,123.02,21.35228013]
[1769681080168,21.50186083,123.07,123.02,26.13616799]
[1769681080373,21.50186083,123.07,123.02,7.3271]
[1769681081574,18.95864869,123.06,123.02,7.3271]
[1769681085876,26.28344869,123.06,123.0,28.68018013]
[1769681086177,28.82666083,123.06,123.0,28.68018013]
[1769681091684,26.28344869,123.06,123.0,28.67743762]